bitfinex/quotes_ETHUSD_20250731
["timestamp","ask_amount","ask_price","bid_price","bid_amount"]
[1753985106628,2.65034056,3773.1,3773.0,0.773]
[1753985106830,2.65041081,3773.0,3772.6,1e-08]
[1753985107055,2.65062157,3772.7,3772.6,1e-08]
[1753985108267,2.65062157,3772.7,3772.6,1.76000001]
[1753985109092,2.6505677,3772.8,3772.7,0.55]
[1753985109380,2.65017849,3773.4,3772.7,1.936]
[1753985109565,2.64989941,3773.8,3773.1,2.6503116]
[1753985109771,2.64944813,3774.4,3773.4,2.65005966]
[1753985109934,2.65183021,3773.9,3773.6,0.55]
[1753985110133,2.65183021,3773.9,3772.8,3.0]
[1753985110134,0.002,3773.9,3772.2,0.001]
[1753985110379,2.65062157,3772.7,3772.2,0.001]
[1753985112762,2.78342157,3772.7,3772.2,0.001]
[1753985113166,3.23562157,3772.7,3772.2,0.001]
[1753985113391,3.372037,3772.7,3772.2,0.001]
[1753985113550,2.78342157,3772.7,3772.2,0.774]
[1753985113749,2.78342157,3772.7,3772.2,0.001]
[1753985116692,3.96475433,3772.7,3772.6,1e-08]
[1753985116851,3.22022157,3772.7,3772.6,1e-08]
[1753985117486,2.78342157,3772.7,3772.6,1e-08]
[1753985118306,4.47501699,3772.7,3772.6,1e-08]
[1753985121266,2.65090263,3772.3,3772.2,1e-08]
[1753985125005,2.65073939,3772.6,3772.2,1.20900001]
[1753985125170,0.002,3772.7,3772.3,1.209]
[1753985125371,2.65083236,3772.4,3772.3,0.4629]
[1753985125572,2.65090263,3772.3,3772.2,1e-08]
[1753985125914,0.002,3772.7,3772.2,0.74610001]
[1753985126079,0.002,3772.7,3772.3,1.209]
[1753985126280,2.65263968,3772.7,3772.3,1.209]
[1753985126466,2.65080875,3772.5,3772.2,1e-08]
[1753985126668,2.65080875,3772.5,3772.3,0.7461]
[1753985126896,2.65080875,3772.5,3772.4,0.7461]
[1753985127375,2.65069183,3772.6,3772.4,1.209]
[1753985127670,2.65076209,3772.5,3772.4,1.0129]
[1753985127875,2.65071963,3772.6,3772.4,1.0129]
[1753985128075,2.65076209,3772.5,3772.4,1.0129]
[1753985128271,2.65090263,3772.3,3772.2,1e-08]
[1753985128694,2.65083453,3772.4,3772.2,1e-08]
[1753985128899,2.65090263,3772.3,3772.2,0.74610001]
[1753985129096,2.65090263,3772.3,3772.2,1e-08]
[1753985129302,3.18106976,3772.3,3772.2,1e-08]
[1753985130221,2.65090263,3772.3,3772.2,1e-08]
[1753985130387,3.08770263,3772.3,3772.2,1e-08]
[1753985131000,2.65090263,3772.3,3772.2,1e-08]
[1753985131587,2.78370263,3772.3,3772.2,1e-08]
[1753985132613,3.96503891,3772.3,3772.2,1e-08]
[1753985132820,4.64004342,3772.3,3772.2,1e-08]
[1753985133024,4.60690714,3772.3,3772.2,1e-08]
[1753985133178,3.45870714,3772.3,3772.2,1e-08]
[1753985133578,3.32590714,3772.3,3772.2,1e-08]
[1753985133815,3.45870714,3772.3,3772.2,1e-08]
[1753985134019,2.78370263,3772.3,3772.2,0.74610001]
[1753985135074,2.78370263,3772.3,3772.2,1e-08]
[1753985135210,2.81683891,3772.3,3772.2,1e-08]
[1753985135416,3.96503891,3772.3,3772.2,1e-08]
[1753985135646,4.62661967,3772.3,3772.2,1e-08]
[1753985136372,2.65118375,3771.9,3771.8,0.001]
[1753985137037,2.78398375,3771.9,3771.8,0.001]
[1753985137390,2.81712354,3771.9,3771.8,0.001]
[1753985137513,3.93218375,3771.9,3771.8,0.001]
[1753985137720,5.27400956,3771.9,3771.8,0.001]
[1753985137918,8.27400956,3771.9,3771.8,0.001]
[1753985138928,7.56260956,3771.9,3771.8,0.001]
[1753985139357,8.27400956,3771.9,3771.8,0.001]
[1753985140367,7.12580956,3771.9,3771.8,0.001]
[1753985141433,2.78398375,3771.9,3771.8,0.7471]
[1753985141973,2.78398375,3771.9,3771.8,0.001]
[1753985142272,2.78398375,3771.9,3771.8,0.7471]
[1753985142734,2.78398375,3771.9,3771.8,0.001]
[1753985143659,2.78398375,3771.9,3771.8,0.7471]
[1753985143660,0.1328,3771.9,3771.8,0.7471]
[1753985143860,0.002,3772.7,3772.1,0.55]
[1753985144070,0.002,3772.7,3772.3,0.55]
[1753985144273,2.65076209,3772.5,3772.4,0.6828]
[1753985144677,0.002,3772.7,3772.5,0.55]
[1753985144831,0.002,3772.7,3771.7,4.181]
[1753985144832,8.15402462,3772.6,3771.1,0.5008]
[1753985145037,3.0,3772.4,3771.1,0.5008]
[1753985145238,2.65160554,3771.3,3771.1,0.5008]
[1753985145964,2.65160554,3771.3,3771.2,0.53626597]
[1753985146374,2.65160554,3771.3,3771.2,0.07336597]
[1753985146947,2.6514556,3771.6,3771.2,1.25336597]
[1753985147266,2.6514657,3771.5,3771.3,1.73]
[1753985147466,2.65160554,3771.3,3771.2,0.07336597]
[1753985147662,0.6942,3772.0,3771.2,0.07336597]
[1753985148052,2.65160554,3771.3,3771.2,0.07336597]
[1753985148782,2.65110542,3772.1,3771.3,0.55]
[1753985149002,2.65123405,3771.9,3771.5,0.55]
[1753985149300,3.0,3772.2,3771.6,1.18]
[1753985149301,2.65100827,3772.2,3771.6,1.18]
[1753985149514,0.26724861,3772.7,3771.8,2.6511956]
[1753985149673,0.002,3772.7,3772.2,0.55]
[1753985150218,0.002,3772.7,3772.4,0.55]
[1753985150219,2.65071912,3772.6,3772.4,0.55]
[1753985150499,2.65264515,3772.7,3772.4,0.55]
[1753985150692,0.002,3772.7,3772.4,1.73]
[1753985151696,0.002,3772.7,3772.4,4.38083236]
[1753985154204,0.002,3772.7,3772.4,1.73]
[1753985154566,0.002,3772.7,3772.4,0.55]
[1753985154770,0.002,3772.7,3772.3,4.254]
[1753985154771,2.65083236,3772.4,3772.3,4.254]
[1753985154971,2.65104318,3772.1,3772.0,4.254]
[1753985155301,0.51454324,3772.4,3771.2,0.07336597]
[1753985155496,4.385,3771.8,3769.0,0.004]
[1753985155806,0.1328,3769.6,3769.0,0.1368]
[1753985156005,0.6942,3770.5,3769.1,0.4586]
[1753985156191,0.1328,3770.0,3769.5,0.1328]
[1753985156410,0.1328,3770.0,3769.7,0.1328]
[1753985156411,2.65252428,3770.0,3769.7,0.1328]
[1753985156722,2.78512653,3770.3,3769.8,0.4586]
[1753985156886,0.1328,3770.5,3769.9,1.3128]
[1753985157086,2.6520978,3770.6,3770.2,0.55]
[1753985157313,2.65230883,3770.3,3770.2,0.55]
[1753985157524,2.65230883,3770.3,3770.2,4.949]
[1753985157788,2.65237918,3770.2,3770.1,4.397]
[1753985157986,2.65262067,3769.9,3769.8,0.1328]
[1753985158186,0.1328,3770.1,3769.2,2.65308003]
[1753985158410,2.78526014,3770.1,3769.5,0.1328]
[1753985158594,0.1328,3770.1,3769.5,0.1328]
[1753985158786,2.78525342,3770.1,3769.5,0.1328]
[1753985159019,2.6525545,3770.0,3769.6,0.55]
[1753985159504,2.65254794,3770.0,3769.6,0.55]
[1753985159697,0.1328,3770.1,3769.6,0.55]
[1753985159890,2.65258318,3770.0,3769.6,0.55]
[1753985160290,2.65266554,3769.8,3769.6,0.55]
[1753985160604,2.65280135,3769.6,3769.5,4.394]
[1753985160922,0.1328,3769.9,3769.6,0.55]
[1753985161123,0.1328,3770.1,3769.6,0.55]
[1753985161287,2.65273098,3769.7,3769.6,0.55]
[1753985161490,0.827,3770.1,3769.6,0.55]
[1753985161491,3.47951668,3770.1,3769.6,0.55]
[1753985161685,3.3464186,3770.5,3769.6,1.0086]
[1753985161889,2.65243562,3770.2,3769.8,0.1328]
[1753985162088,0.24471743,3770.1,3769.8,0.1328]
[1753985162393,2.65236841,3770.3,3769.9,4.387]
[1753985162591,2.78506584,3770.4,3769.9,4.387]
[1753985162902,0.24464517,3770.3,3770.0,0.55]
[1753985163094,0.1328,3770.5,3770.0,1.4042]
[1753985163289,0.24464203,3770.4,3770.2,0.55]
[1753985163522,0.1328,3770.5,3770.4,0.55]
[1753985163924,2.65186522,3771.0,3770.4,0.55]
[1753985164127,0.1328,3770.8,3770.4,0.55]
[1753985164435,0.827,3770.8,3770.5,4.381]
[1753985164640,2.652029,3770.7,3770.5,4.381]
[1753985164933,3.47896783,3770.8,3770.5,4.381]
[1753985165229,0.1328,3770.8,3770.5,4.381]
[1753985165434,1.1626,3771.4,3770.6,0.55]
[1753985165634,0.1328,3771.1,3770.6,0.6828]
[1753985166000,2.78456855,3771.1,3770.6,0.6828]
[1753985166245,2.65175431,3771.1,3770.9,0.55]
[1753985166453,0.1328,3771.3,3770.9,0.55]
[1753985166614,2.65179132,3771.1,3770.9,0.55]
[1753985166818,0.827,3771.3,3770.9,0.55]
[1753985167127,2.65167585,3771.2,3770.9,0.55]
[1753985167309,3.47860986,3771.3,3770.9,0.55]
[1753985167506,1.22170099,3771.3,3770.9,0.55]
[1753985167707,0.6942,3771.7,3770.9,1.2714]
[1753985167908,0.1328,3771.6,3771.1,0.55]
[1753985168110,2.78421286,3771.6,3771.2,4.371]
[1753985168314,0.1328,3771.6,3771.2,4.371]
[1753985168797,0.1328,3771.8,3771.3,0.6828]
[1753985169030,0.4684,3772.2,3771.3,0.6828]
[1753985169031,0.1328,3771.9,3771.3,0.6828]
[1753985169300,2.65160554,3771.3,3771.2,4.371]
[1753985169543,2.65200876,3770.8,3770.4,0.551]
[1753985169832,1.69291408,3771.3,3770.4,0.551]
[1753985169833,2.65204074,3770.7,3770.6,0.55]
[1753985170150,2.65204074,3770.7,3770.6,4.368]
[1753985172572,2.6520978,3770.6,3770.5,0.001]
[1753985173466,2.78484198,3770.7,3770.5,0.001]
[1753985173615,0.4684,3771.5,3770.5,2.18068]
[1753985173960,2.65182615,3771.0,3770.9,0.55]
[1753985174154,0.1328,3771.3,3770.9,4.908]
[1753985174357,0.1328,3771.4,3770.9,4.908]
[1753985174523,2.65174781,3771.1,3770.9,5.3666]
[1753985174722,2.65160554,3771.3,3770.9,5.3666]
[1753985174949,2.6515096,3771.5,3771.1,0.55]
[1753985175253,0.38174324,3772.4,3770.9,4.358]
[1753985175254,0.6942,3772.4,3771.3,0.55]
[1753985175423,2.65114712,3772.0,3771.5,0.55]
[1753985175623,2.65106363,3772.1,3771.7,0.55]
[1753985175822,2.65115873,3772.0,3771.7,0.55]
[1753985176144,2.65104318,3772.1,3771.7,0.6828]
[1753985176341,0.1328,3772.2,3771.7,0.6828]
[1753985176747,2.65109046,3772.1,3771.7,0.6828]
[1753985177062,0.002,3772.5,3771.9,0.55]
[1753985177356,2.65281875,3772.5,3772.1,0.55]
[1753985177560,0.002,3772.5,3772.1,0.55]
[1753985177774,0.002,3772.5,3772.1,1.0249]
[1753985177939,2.65282373,3772.5,3772.1,1.0249]
[1753985178129,2.65083993,3772.4,3772.1,1.0249]
[1753985178327,2.65083715,3772.4,3772.1,1.0249]
[1753985178573,0.7427,3772.3,3772.0,4.4838]
[1753985178775,2.65104318,3772.1,3772.0,4.901]
[1753985179426,2.65104318,3772.1,3772.0,4.351]
[1753985179662,0.7427,3772.1,3772.0,4.351]
[1753985179864,2.65104318,3772.1,3772.0,4.351]
[1753985180649,0.58850511,3772.1,3771.8,0.55]
[1753985180967,2.65125404,3771.8,3771.7,0.1328]
[1753985181125,2.65125404,3771.8,3770.9,3.0]
[1753985181126,2.65152985,3771.5,3770.9,3.0]
[1753985181322,2.65152985,3771.5,3771.3,0.55]
[1753985181526,2.65152985,3771.5,3771.2,0.1328]
[1753985181527,0.1328,3771.8,3771.2,0.1328]
[1753985182071,2.65145418,3771.6,3771.3,0.55]
[1753985182428,0.1328,3771.8,3771.4,4.34]
[1753985182678,2.65116105,3772.0,3771.5,0.6828]
[1753985182878,2.65118788,3771.9,3771.5,1.8744]
[1753985183489,2.6511404,3772.0,3771.5,1.8744]
[1753985183795,2.7838587,3772.1,3771.5,1.8744]
[1753985183942,0.7427,3772.4,3771.6,0.55]
[1753985184147,2.65104318,3772.1,3771.6,0.55]
[1753985184467,2.65126193,3771.8,3771.6,0.55]
[1753985184639,0.7427,3772.0,3771.6,0.55]
[1753985185044,2.65132433,3771.7,3771.6,0.55]
[1753985185681,3.39407314,3771.7,3771.6,0.55]
[1753985185995,3.39407314,3771.7,3771.5,0.55]
[1753985186147,2.65125839,3771.8,3771.5,0.55]
[1753985186572,0.1328,3771.9,3771.5,0.55]
[1753985186573,2.65133233,3771.7,3771.5,0.55]
[1753985186757,2.65127905,3771.8,3771.5,0.55]
[1753985187081,2.65133542,3771.7,3771.5,0.55]
[1753985187296,2.65127621,3771.8,3771.5,0.55]
[1753985187495,2.65109721,3772.1,3771.5,1.2667]
[1753985187783,0.002,3772.7,3771.7,0.55]
[1753985187998,0.002,3772.7,3771.2,2.65161882]
[1753985187999,0.4503,3772.4,3771.8,4.323]
[1753985188294,2.65111766,3772.0,3771.9,0.55]
[1753985188448,1.193,3772.0,3771.6,4.323]
[1753985188654,2.65132433,3771.7,3771.6,4.873]
[1753985188880,3.39402433,3771.7,3771.6,4.873]
[1753985189386,2.12095499,3771.7,3770.7,6.369]
[1753985189582,0.1328,3771.5,3771.3,0.001]
[1753985189788,2.65153523,3771.4,3771.3,0.001]
[1753985189983,4.58831228,3771.4,3771.3,0.001]
[1753985190424,4.93677705,3771.4,3770.5,4.323]
[1753985190593,2.6520978,3770.6,3770.5,4.323]
[1753985190778,2.6520978,3770.6,3770.5,4.873]
[1753985190985,2.6520978,3770.6,3770.5,4.323]
[1753985191186,3.3947978,3770.6,3770.5,0.001]
[1753985191423,4.44977389,3770.6,3770.5,4.323]
[1753985191585,3.3947978,3770.6,3770.5,4.323]
[1753985191920,0.7427,3771.1,3770.5,4.323]
[1753985192082,2.6520978,3770.6,3770.5,4.323]
[1753985192280,3.3947978,3770.6,3770.5,4.323]
[1753985192705,3.8450978,3770.6,3770.5,4.323]
[1753985193133,4.49480887,3770.6,3770.5,0.001]
[1753985194531,5.01872427,3770.6,3770.5,1e-08]
[1753985194928,4.98557305,3770.6,3770.5,1e-08]
[1753985195132,2.65216814,3770.5,3770.4,1e-08]
[1753985195347,6.47302531,3770.5,3770.4,1e-08]
[1753985195844,9.47302531,3770.5,3770.4,1e-08]
[1753985196454,2.65315327,3769.1,3769.0,0.004]
[1753985197887,0.7427,3769.4,3769.0,0.004]
[1753985198093,2.65296112,3769.4,3769.0,1.1956]
[1753985198412,2.65315327,3769.1,3769.0,0.004]
[1753985199881,3.39585327,3769.1,3769.0,0.004]
[1753985200089,2.65315327,3769.1,3769.0,0.004]
[1753985200406,3.39585327,3769.1,3769.0,0.004]
[1753985200604,3.52865327,3769.1,3769.0,0.004]
[1753985200906,2.78595327,3769.1,3769.0,0.004]
[1753985201707,4.07255525,3769.1,3769.0,0.004]
[1753985201905,3.32985525,3769.1,3769.0,0.004]
[1753985202066,2.78595327,3769.1,3769.0,0.004]
[1753985202722,0.1328,3769.1,3769.0,0.004]
[1753985202877,0.1328,3769.1,3769.0,0.4789]
[1753985203087,2.78595327,3769.1,3769.0,0.004]
[1753985203265,0.1328,3769.1,3769.0,0.004]
[1753985203592,0.7427,3769.7,3769.1,0.55]
[1753985203777,0.1328,3769.5,3769.1,1.03864]
[1753985203979,0.1328,3769.5,3769.2,1.1916]
[1753985204490,0.1328,3769.5,3769.0,0.554]
[1753985204662,2.78574059,3769.5,3769.0,0.554]
[1753985204864,0.1328,3769.5,3769.0,0.004]
[1753985205113,2.65301249,3769.3,3769.0,0.004]
[1753985205410,0.1328,3769.1,3769.0,0.004]
[1753985207396,2.78595327,3769.1,3769.0,0.004]
[1753985207709,0.1328,3769.1,3769.0,0.004]
[1753985207899,0.1328,3769.1,3769.0,4.35952366]
[1753985208100,2.65277959,3769.7,3769.1,0.55]
[1753985208101,0.1328,3769.5,3769.1,0.55]
[1753985208305,0.1328,3769.5,3769.2,0.4336]
[1753985208505,0.1328,3769.5,3769.1,0.55]
[1753985208896,0.1328,3769.5,3769.1,0.9836]
[1753985210136,2.6528542,3769.6,3769.3,0.55]
[1753985210437,0.1328,3769.9,3769.5,0.55]
[1753985210637,2.78539478,3769.9,3769.5,0.55]
[1753985210802,2.65259544,3769.9,3769.7,0.55]
[1753985210994,2.65259544,3769.9,3769.7,0.9836]
[1753985211624,2.65254109,3770.0,3769.7,0.9836]
[1753985211931,2.65254537,3770.0,3769.7,0.9836]
[1753985212093,2.65260492,3769.9,3769.7,0.9836]
[1753985212294,2.65253351,3770.0,3769.7,0.55]
[1753985212517,2.65262691,3769.9,3769.7,0.55]
[1753985213328,2.65266061,3769.8,3769.6,0.1328]
[1753985213491,0.8635,3769.8,3769.4,0.55]
[1753985214229,2.65280311,3769.6,3769.3,0.55]
[1753985214531,2.65291329,3769.5,3769.3,0.551]
[1753985214825,2.65294211,3769.4,3769.3,0.001]
[1753985217432,3.26987228,3769.4,3769.3,0.001]
[1753985217596,2.65294211,3769.4,3769.3,0.001]
[1753985218432,3.85714211,3769.4,3769.3,0.001]
[1753985219120,4.10283635,3769.4,3769.3,0.001]
[1753985219323,4.13599812,3769.4,3769.3,0.001]
[1753985219511,4.38190185,3769.4,3769.3,0.001]
[1753985219708,5.09865496,3769.4,3769.3,0.001]
[1753985220106,5.09885686,3769.4,3769.3,0.001]
[1753985220306,2.65308288,3769.2,3769.1,0.001]
[1753985220530,2.78588288,3769.2,3769.1,0.001]
[1753985221140,3.03191737,3769.2,3769.1,0.001]
[1753985221646,4.00878636,3769.2,3769.1,0.001]
[1753985221850,4.72230921,3769.2,3769.1,0.001]
[1753985222050,4.72230916,3769.2,3769.1,0.001]
[1753985222938,5.22897269,3769.2,3769.1,0.001]
[1753985223135,5.19580916,3769.2,3769.1,0.001]
[1753985223653,3.27808631,3769.2,3769.1,0.001]
[1753985224055,0.62500343,3769.2,3769.1,0.001]
[1753985224265,0.62500343,3769.2,3769.1,1.7033]
[1753985224637,0.49220343,3769.2,3769.1,6.0961]
[1753985225167,0.49220343,3769.2,3769.1,8.74925327]
[1753985225365,0.24603449,3769.2,3769.1,9.89069917]
[1753985225836,0.24603449,3769.2,3769.1,7.2375459]
[1753985226335,0.24603449,3769.2,3769.1,4.9438]
[1753985226538,3.76261737,3769.2,3769.1,4.261]
[1753985226753,4.4826321,3769.2,3769.1,4.261]
[1753985227051,0.37883449,3769.2,3769.1,4.261]
[1753985227241,3.03191737,3769.2,3769.1,4.261]
[1753985227831,3.76261737,3769.2,3769.1,4.261]
[1753985227973,4.45152386,3769.2,3769.1,4.261]
[1753985228177,3.03191737,3769.2,3769.1,4.261]
[1753985228552,0.37883449,3769.2,3769.1,0.001]
[1753985228735,0.49250482,3769.2,3769.1,0.001]
[1753985228936,0.24603449,3769.2,3769.1,1.7033]
[1753985229142,0.24603449,3769.2,3769.1,4.48925327]
[1753985229454,0.24603449,3769.2,3769.1,5.20470771]
[1753985229684,0.24603449,3769.2,3769.1,2.55155444]
[1753985229865,2.89911737,3769.2,3769.1,0.001]
[1753985230067,4.10331737,3769.2,3769.1,0.001]
[1753985230876,3.76320362,3769.2,3769.1,0.001]
[1753985231083,3.51658288,3769.2,3769.1,0.001]
[1753985231381,4.02324641,3769.2,3769.1,0.001]
[1753985231682,4.21205335,3769.2,3769.1,0.001]
[1753985231842,5.41625335,3769.2,3769.1,0.001]
[1753985232970,3.14632853,3769.2,3769.1,0.001]
[1753985233156,3.27912853,3769.2,3769.1,0.001]
[1753985233357,3.03251413,3769.2,3769.1,0.001]
[1753985233666,3.27907126,3769.2,3769.1,0.001]
[1753985234266,4.48327126,3769.2,3769.1,0.001]
[1753985234465,5.20041463,3769.2,3769.1,0.001]
[1753985234671,4.72691463,3769.2,3769.1,0.001]
[1753985234888,4.72691463,3769.2,3767.2,0.12465102]
[1753985234889,2.65399824,3767.9,3767.2,0.12465102]
[1753985235044,4.385,3769.1,3767.2,0.12465102]
[1753985235045,5.722,3769.1,3767.2,0.12465102]
[1753985235246,0.49295299,3769.0,3767.8,0.43360001]
[1753985235486,2.78625157,3768.7,3768.2,0.55]
[1753985235687,2.65378695,3768.2,3767.8,0.43360001]
[1753985235847,0.4735,3768.6,3767.8,1e-08]
[1753985236054,2.65383892,3768.2,3767.8,1e-08]
[1753985236254,2.65386336,3768.1,3767.8,1e-08]
[1753985236450,0.7062,3768.8,3767.9,0.4713]
[1753985236691,0.7062,3769.1,3768.0,0.55]
[1753985236851,0.4671,3769.3,3768.0,0.55]
[1753985236852,0.1328,3768.7,3768.4,0.55]
[1753985237056,0.1328,3768.9,3768.8,0.55]
[1753985237263,0.002,3769.3,3768.8,0.4713]
[1753985237264,0.1328,3769.1,3768.8,0.4713]
[1753985237753,0.1328,3769.1,3768.6,0.55]
[1753985238188,0.1328,3769.1,3768.6,3.20346428]
[1753985238365,0.49236019,3769.0,3768.6,0.55]
[1753985238562,0.49236019,3769.0,3768.5,0.1328]
[1753985238563,0.49236019,3768.9,3768.5,0.1328]
[1753985238887,3.27854108,3768.8,3768.4,0.55]
[1753985239092,3.6057998,3768.7,3768.2,0.55]
[1753985239295,0.1328,3768.4,3768.2,0.55]
[1753985239460,0.1328,3768.4,3768.0,0.55]
[1753985239858,2.65337977,3768.8,3768.2,0.55]
[1753985240086,0.1328,3768.6,3768.2,3.20376887]
[1753985240302,0.1328,3768.6,3768.3,1.1417]
[1753985240594,0.1328,3768.8,3768.6,0.55]
[1753985240777,0.24613265,3769.0,3768.8,0.55]
[1753985240979,0.24614586,3768.9,3768.8,0.55]
[1753985241148,0.24614586,3768.9,3768.7,0.1328]
[1753985241353,0.24618056,3768.8,3768.4,0.6828]
[1753985241594,0.24618056,3768.7,3768.6,3.20350528]
[1753985241886,0.1328,3768.9,3768.6,3.7951872]
[1753985242095,0.1328,3768.9,3768.7,1.6917]
[1753985242257,0.1328,3768.9,3768.8,3.20336446]
[1753985242459,0.1328,3768.9,3768.8,0.55]
[1753985242761,0.1348,3769.3,3768.9,0.55]
[1753985242955,0.1348,3769.3,3769.2,2.65308288]
[1753985243183,0.002,3769.3,3769.2,4.34478288]
[1753985243490,0.002,3769.3,3769.2,4.91206117]
[1753985243792,0.002,3769.3,3769.2,1.11727829]
[1753985243999,0.002,3769.3,3769.2,0.55]
[1753985244150,0.002,3769.3,3768.9,0.6828]
[1753985244357,2.65311083,3769.2,3768.9,0.55]
[1753985244696,0.002,3769.3,3768.9,0.55]
[1753985244994,2.90147949,3769.3,3768.9,0.55]
[1753985245197,1.20209668,3769.3,3768.9,0.55]
[1753985245356,0.7062,3769.2,3768.9,0.55]
[1753985245553,0.1328,3769.2,3768.8,0.55]
[1753985245756,0.1328,3769.2,3768.9,1.1417]
[1753985245975,0.1328,3769.2,3769.0,1.1417]
[1753985246177,0.1328,3769.2,3768.8,0.55]
[1753985246178,0.37913385,3769.2,3768.8,0.55]
[1753985246595,0.24633385,3769.2,3769.0,3.20321854]
[1753985246797,0.002,3769.3,3769.2,0.55]
[1753985247008,0.002,3769.3,3769.2,3.20308288]
[1753985247210,0.002,3769.3,3769.2,4.34478288]
[1753985247579,0.002,3769.3,3769.2,0.55]
[1753985248698,0.002,3769.3,3769.1,0.1328]
[1753985248873,2.65505215,3769.3,3768.5,0.55]
[1753985249073,2.78589723,3769.2,3768.9,0.55]
[1753985249293,0.1328,3769.2,3768.9,0.55]
[1753985250816,2.65329406,3768.9,3768.8,4.26]
[1753985250998,3.49229406,3768.9,3768.8,4.26]
[1753985251310,0.002,3769.3,3768.8,4.26]
[1753985251520,2.78600033,3769.1,3768.8,4.26]
[1753985251719,0.002,3769.3,3768.8,0.426]
[1753985252015,0.002,3769.3,3768.9,0.55]
[1753985252215,0.002,3769.3,3768.9,3.20323191]
[1753985252416,0.002,3769.3,3769.2,0.55]
[1753985252622,0.002,3769.3,3769.2,3.20308288]
[1753985252915,0.002,3769.3,3769.2,5.04458194]
[1753985253319,0.002,3769.3,3769.2,7.34478288]
[1753985253813,0.002,3769.3,3769.2,11.60478288]
[1753985257398,0.002,3769.3,3769.2,7.34478288]
[1753985258254,1e-08,3769.3,3769.2,7.34478288]
[1753985259752,1e-08,3769.7,3769.6,6.20280135]
[1753985259913,1e-08,3769.7,3769.6,7.65367112]
[1753985260113,1e-08,3769.7,3769.6,8.79537112]
[1753985261062,1e-08,3769.7,3769.6,7.65367112]
[1753985261351,1e-08,3769.7,3769.6,5.65280135]
[1753985261671,1e-08,3769.7,3769.6,0.1328]
[1753985261892,1e-08,3769.7,3769.6,5.78560135]
[1753985262387,1e-08,3769.7,3769.6,6.33560135]
[1753985262585,1e-08,3769.7,3769.6,6.80690135]
[1753985262803,1e-08,3769.7,3769.6,8.55577336]
[1753985262929,1e-08,3769.7,3769.6,8.68857336]
[1753985263132,1e-08,3769.7,3769.6,12.94857336]
[1753985264840,1e-08,3769.7,3769.6,12.27817336]
[1753985265035,1e-08,3769.7,3769.6,12.94857336]
[1753985266233,1e-08,3769.7,3769.6,12.27817336]
[1753985266437,1e-08,3769.7,3769.6,11.80687336]
[1753985267576,1e-08,3769.7,3769.6,7.3928]
[1753985267904,3.74843099,3769.7,3769.6,4.3928]
[1753985268043,2.65280135,3769.6,3769.0,4.26]
[1753985268237,0.50765014,3769.5,3769.0,4.3928]
[1753985268432,0.50765014,3769.5,3769.1,0.55]
[1753985268433,2.65301858,3769.3,3769.1,0.55]
[1753985268693,1.0957,3769.2,3769.1,0.55]
[1753985268909,0.64720001,3769.7,3769.2,0.1328]
[1753985269204,3.74850135,3769.6,3769.1,0.6828]
[1753985269393,2.6529879,3769.4,3769.1,0.55]
[1753985269693,2.65301385,3769.3,3769.1,0.55]
[1753985269866,2.65280135,3769.6,3769.3,0.1328]
[1753985270073,2.65329406,3768.9,3768.8,4.26]
[1753985270238,2.78609406,3768.9,3768.8,4.26]
[1753985270638,2.6536461,3768.4,3767.9,4.26]
[1753985270957,1.0957,3768.3,3767.9,0.1328]
[1753985271160,1.0957,3768.3,3768.0,0.55]
[1753985271463,3.74950106,3768.2,3767.9,0.1328]
[1753985271676,0.6472,3768.1,3767.9,0.1328]
[1753985272271,0.6472,3768.1,3768.0,0.55]
[1753985272472,2.78639663,3768.5,3768.0,0.55]
[1753985272676,0.6472,3768.4,3768.0,0.55]
[1753985272849,0.6472,3768.4,3767.9,2.6539834]
[1753985273178,2.65343869,3768.7,3768.3,0.55]
[1753985273375,0.6472,3768.7,3768.3,0.55]
[1753985273535,3.30058091,3768.8,3768.6,0.55]
[1753985273740,3.74913487,3768.7,3768.6,0.55]
[1753985273934,1.0957,3768.7,3768.6,0.55]
[1753985274274,0.6472,3768.7,3768.6,0.55]
[1753985274465,3.74913487,3768.7,3768.6,0.55]
[1753985275338,3.74913487,3768.7,3768.0,3.2038799]
[1753985275547,1.0957,3768.7,3768.4,0.55]
[1753985276044,0.6472,3768.7,3768.4,4.81]
[1753985276240,3.30070879,3768.6,3768.4,4.81]
[1753985276444,0.6472,3768.5,3768.4,4.81]
[1753985277081,1.0957,3768.5,3768.4,4.81]
[1753985277256,0.1328,3768.9,3768.4,4.81]
[1753985277458,0.6472,3768.8,3768.4,4.81]
[1753985277673,0.5813,3768.9,3768.4,4.81]
[1753985277847,0.6472,3768.7,3768.4,4.81]
[1753985278448,0.6472,3768.7,3768.4,4.811]
[1753985278643,2.65357569,3768.5,3768.4,4.811]
[1753985278860,0.6472,3768.5,3768.4,4.811]
[1753985279379,0.1328,3768.9,3768.4,4.811]
[1753985279552,0.6472,3768.8,3768.4,4.811]
[1753985279753,3.30057324,3768.8,3768.6,0.55]
[1753985279942,1.0957,3769.1,3768.6,0.55]
[1753985280143,2.65337201,3768.8,3768.6,0.55]
[1753985280343,0.6472,3768.7,3768.4,0.001]
[1753985280581,0.1328,3769.0,3768.6,0.55]
[1753985280748,1e-08,3769.7,3768.7,0.55]
[1753985280749,2.65310443,3769.2,3768.7,0.55]
[1753985280951,0.1328,3769.4,3768.9,0.55]
[1753985281152,2.65309625,3769.2,3768.9,0.55]
[1753985281482,2.65322366,3769.0,3768.4,0.001]